lending/lending_fUSD_20260104
["ID","MTS","AMOUNT","RATE_DAILY","PERIOD"]
[400437457,1767552641419,-200.0,0.00015475,2]
[400437458,1767552641428,-200.0,0.0001563,2]
[400437459,1767552641438,-166.66,0.00015631,2]
[400437460,1767552641447,-1084.37,0.00015647,2]
[400437461,1767552641457,-500.0,0.00015667,2]
[400437462,1767552641466,-151.0,0.00015751,2]
[400437463,1767552641475,-151.0,0.00015751,2]
[400437464,1767552641484,-164.85024223,0.00015847,2]
[400437465,1767552641493,-380.28936169,0.00015864,2]
[400437466,1767552641503,-1000.0,0.00015921,2]
[400437467,1767552641514,-1000.0,0.00015921,2]
[400437468,1767552641526,-1000.0,0.00015921,2]
[400437469,1767552641535,-1000.0,0.00015921,2]
[400437470,1767552641544,-1000.0,0.00015921,2]
[400437471,1767552641554,-1000.0,0.00015921,2]
[400437472,1767552641564,-1000.0,0.00015921,2]
[400437473,1767552641574,-552.06846713,0.00015921,2]
[400437474,1767552641584,-1000.0,0.00015921,2]
[400437475,1767552641595,-1000.0,0.00015921,2]
[400437476,1767552641604,-224.11556255,0.00015921,2]
[400437477,1767552641613,-277.79177632,0.00015921,2]
[400437478,1767552641622,-1000.0,0.00015921,2]
[400437479,1767552641634,-1000.0,0.00015921,2]
[400437480,1767552641644,-1000.0,0.00015921,2]
[400437481,1767552641654,-1000.0,0.00015921,2]
[400437482,1767552641663,-822.40241521,0.00015921,2]
[400437483,1767552641672,-1000.0,0.00015921,2]
[400437484,1767552641683,-1000.0,0.00015921,2]
[400437485,1767552641693,-1000.0,0.00015921,2]
[400437486,1767552641703,-479.33901688,0.00015921,2]
[400437487,1767552641713,-402.58602431,0.00015921,2]
[400437488,1767552641722,-1000.0,0.00015921,2]
[400437489,1767552641731,-1000.0,0.00015921,2]
[400437490,1767552641740,-1006.76212888,0.00015921,2]
[400437491,1767552641750,-1000.0,0.00015921,2]
[400437492,1767552641759,-1000.0,0.00015921,2]
[400437493,1767552641768,-631.92218996,0.00015921,2]
[400437494,1767552641778,-310.57231223,0.00015921,2]
[400437495,1767552641791,-502.24390153,0.00015921,2]
[400437496,1767552641802,-542.16693919,0.00015921,2]
[400437497,1767552641811,-502.37793469,0.00015921,2]
[400437498,1767552641820,-1084.37,0.00015921,2]
[400437499,1767552641829,-500.0,0.00015941,2]
[400437500,1767552641839,-1633.43,0.00015964,2]
[400437501,1767552641848,-500.0,0.00015973,2]
[400437502,1767552641858,-500.0,0.00015973,2]
[400437503,1767552641868,-500.0,0.00015973,2]
[400437504,1767552641878,-500.0,0.00015973,2]
[400437505,1767552641887,-500.0,0.00015973,2]
[400437506,1767552641896,-640.75623125,0.00015973,2]
[400437507,1767552641906,-500.0,0.00015973,2]
[400437508,1767552641917,-162.39049405,0.00015973,2]
[400437509,1767552641929,-500.0,0.00015973,2]
[400437510,1767552641939,-500.33097651,0.00015973,2]
[400437511,1767552641948,-500.0,0.00015973,2]
[400437512,1767552641957,-500.0,0.00015973,2]
[400437513,1767552641967,-500.0,0.00015973,2]
[400437514,1767552641980,-500.0,0.00015973,2]
[400437515,1767552641989,-500.0,0.00015973,2]
[400437516,1767552642001,-500.80153356,0.00015973,2]
[400437517,1767552642011,-500.0,0.00015973,2]
[400437518,1767552642020,-500.0,0.00015973,2]
[400437519,1767552642029,-500.0,0.00015973,2]
[400437520,1767552642039,-500.0,0.00015973,2]
[400437521,1767552642048,-500.0,0.00015973,2]
[400437522,1767552642059,-571.49254252,0.00015973,2]
[400437523,1767552642070,-500.0,0.00015973,2]
[400437524,1767552642084,-500.0,0.00015973,2]
[400437525,1767552642096,-178.11764647,0.00015973,2]
[400437526,1767552642106,-427.65194977,0.00015973,2]
[400437527,1767552642116,-500.0,0.00015973,2]
[400437528,1767552642125,-557.14178352,0.00015973,2]
[400437529,1767552642135,-156.8618217,0.00015973,2]
[400437530,1767552642144,-500.0,0.00015973,2]
[400437531,1767552642154,-500.0,0.00015973,2]
[400437532,1767552642163,-510.53211563,0.00015973,2]
[400437533,1767552642172,-500.0,0.00015973,2]
[400437534,1767552642182,-500.0,0.00015973,2]
[400437535,1767552642191,-162.60748848,0.00015973,2]
[400437536,1767552642200,-500.0,0.00015973,2]
[400437537,1767552642210,-162.71793463,0.00015973,2]
[400437538,1767552642220,-500.0,0.00015973,2]
[400437539,1767552642229,-500.0,0.00015973,2]
[400437540,1767552642238,-500.0,0.00015973,2]
[400437541,1767552642247,-500.0,0.00015973,2]
[400437542,1767552642257,-501.32441659,0.00015973,2]
[400437543,1767552642266,-519.94704597,0.00015973,2]
[400437544,1767552642276,-500.0,0.00015973,2]
[400437545,1767552642288,-500.0,0.00015973,2]
[400437546,1767552642298,-500.0,0.00015973,2]
[400437547,1767552642307,-168.94981605,0.00015973,2]
[400437548,1767552642318,-307.90616276,0.00015973,2]
[400437549,1767552642329,-500.0,0.00015973,2]
[400437550,1767552642338,-500.0,0.00015973,2]
[400437551,1767552642347,-500.0,0.00015973,2]
[400437552,1767552642356,-161.9533546,0.00015973,2]
[400437553,1767552642366,-500.0,0.00015973,2]
[400437554,1767552642375,-500.0,0.00015973,2]
[400437555,1767552642384,-375.1471696,0.00015973,2]
[400437556,1767552642396,-500.0,0.00015973,2]
[400437557,1767552642405,-164.04019857,0.00015973,2]
[400437558,1767552642415,-283.16984364,0.00015973,2]
[400437559,1767552642425,-500.0,0.00015973,2]
[400437560,1767552642434,-500.0,0.00015973,2]
[400437561,1767552642443,-500.0,0.00015973,2]
[400437562,1767552642452,-335.30855068,0.00015973,2]
[400437563,1767552642462,-500.0,0.00015973,2]
[400437564,1767552642472,-500.0,0.00015973,2]
[400437565,1767552642483,-500.0,0.00015973,2]
[400437566,1767552642494,-500.0,0.00015973,2]
[400437567,1767552642504,-531.13668623,0.00015973,2]
[400437568,1767552642515,-165.90197313,0.00015973,2]
[400437569,1767552642525,-500.0,0.00015973,2]
[400437570,1767552642535,-500.0,0.00015973,2]
[400437571,1767552642545,-500.0,0.00015973,2]
[400437572,1767552642554,-469.53903087,0.00015973,2]
[400437573,1767552642564,-500.0,0.00015973,2]
[400437574,1767552642574,-165.17063787,0.00015973,2]
[400437575,1767552642585,-510.20909915,0.00015973,2]
[400437576,1767552642594,-500.0,0.00015973,2]
[400437577,1767552642604,-207.91178514,0.00015973,2]
[400437578,1767552642615,-167.27117192,0.00015973,2]
[400437579,1767552642625,-220.73919523,0.00015973,2]
[400437580,1767552642635,-507.25971668,0.00015973,2]
[400437581,1767552642644,-484.01781712,0.00015973,2]
[400437582,1767552642654,-500.0,0.00015973,2]
[400437583,1767552642666,-500.0,0.00015973,2]
[400437584,1767552642678,-500.0,0.00015973,2]
[400437585,1767552642690,-500.0,0.00015999,2]
[400437586,1767552642699,-500.0,0.00015999,2]
[400437587,1767552642709,-500.0,0.00015999,2]
[400437588,1767552642719,-500.0,0.00015999,2]
[400437589,1767552642729,-500.0,0.00015999,2]
[400437590,1767552642739,-500.0,0.00015999,2]
[400437591,1767552642750,-511.41685725,0.00015999,2]
[400437592,1767552642759,-500.0,0.00015999,2]
[400437593,1767552642769,-1474.5753216,0.00016012,2]
[400437594,1767552642780,-255.0,0.00016037,2]
[400437595,1767552642790,-2296.0,0.00016183,2]
[400437596,1767552642799,-1084.37,0.00016195,2]
[400437598,1767552642808,-300.0,0.00016212,2]
[400437600,1767552642818,-195.0,0.00016212,2]
[400437602,1767552642827,-250.0,0.00016212,2]
[400437604,1767552642837,-300.0,0.00016212,2]
[400437605,1767552642846,-193.0,0.00016212,2]
[400437606,1767552642855,-2500.0,0.00016212,2]
[400437607,1767552642876,-294.06,0.00016217,2]
[400437608,1767552642888,-195.0,0.00016302,2]
[400437609,1767552642898,-420.0,0.00016328,2]
[400437610,1767552642908,-300.0,0.00016356,2]
[400437611,1767552642918,-2500.0,0.00016356,2]
[400437612,1767552642927,-300.0,0.00016356,2]
[400437613,1767552642937,-195.0,0.00016356,2]
[400437614,1767552642947,-164.85024223,0.0001636,2]
[400437615,1767552642957,-1241.68503449,0.00016402,2]
[400437616,1767552642969,-250.0,0.00016402,2]
[400437617,1767552642979,-300.0,0.00016402,2]
[400437618,1767552642989,-1680.0,0.0001641,2]
[400437619,1767552642999,-250.0,0.00016411,2]
[400437620,1767552643009,-300.0,0.00016411,2]
[400437621,1767552643019,-195.0,0.00016411,2]
[400437622,1767552643029,-500.0,0.00016438,2]
[400437623,1767552643038,-500.0,0.00016438,2]
[400437624,1767552643047,-500.0,0.00016438,2]
[400437625,1767552643058,-500.0,0.00016438,2]
[400437626,1767552643068,-500.0,0.00016438,2]
[400437627,1767552643079,-500.0,0.00016438,2]
[400437628,1767552643089,-500.0,0.00016438,2]
[400437629,1767552643099,-500.0,0.00016438,2]
[400437630,1767552643109,-500.0,0.00016438,2]
[400437631,1767552643118,-500.0,0.00016438,2]
[400437632,1767552643129,-500.0,0.00016438,2]
[400437633,1767552643140,-500.0,0.00016438,2]
[400437634,1767552643149,-500.0,0.00016438,2]
[400437635,1767552643159,-500.0,0.00016438,2]
[400437636,1767552643169,-500.0,0.00016438,2]
[400437637,1767552643179,-500.0,0.00016438,2]
[400437638,1767552643188,-500.0,0.00016438,2]
[400437639,1767552643198,-500.0,0.00016438,2]
[400437640,1767552643207,-500.0,0.00016438,2]
[400437641,1767552643216,-500.0,0.00016438,2]
[400437642,1767552643227,-500.0,0.00016438,2]
[400437643,1767552643237,-500.0,0.00016438,2]
[400437644,1767552643247,-500.0,0.00016438,2]
[400437645,1767552643256,-500.0,0.00016438,2]
[400437646,1767552643265,-500.0,0.00016438,2]
[400437647,1767552643275,-500.0,0.00016438,2]
[400437648,1767552643285,-500.0,0.00016438,2]
[400437649,1767552643294,-500.0,0.00016438,2]
[400437650,1767552643303,-500.0,0.00016438,2]
[400437651,1767552643313,-500.0,0.00016438,2]
[400437652,1767552643326,-500.0,0.00016438,2]
[400437653,1767552643335,-500.0,0.00016438,2]
[400437654,1767552643344,-500.0,0.00016438,2]
[400437655,1767552643355,-500.0,0.00016438,2]
[400437656,1767552643366,-500.0,0.00016438,2]
[400437657,1767552643375,-500.0,0.00016438,2]
[400437658,1767552643385,-500.0,0.00016438,2]
[400437659,1767552643394,-500.0,0.00016438,2]
[400437660,1767552643403,-500.0,0.00016438,2]
[400437661,1767552643418,-500.0,0.00016438,2]
[400437662,1767552643427,-500.0,0.00016438,2]
[400437663,1767552643437,-500.0,0.00016438,2]
[400437664,1767552643446,-500.0,0.00016438,2]
[400437665,1767552643456,-500.0,0.00016438,2]
[400437666,1767552643466,-500.0,0.00016438,2]
[400437667,1767552643475,-500.0,0.00016438,2]
[400437668,1767552643485,-500.0,0.00016438,2]
[400437669,1767552643496,-500.0,0.00016438,2]
[400437670,1767552643506,-500.0,0.00016438,2]
[400437671,1767552643516,-500.0,0.00016438,2]
[400437672,1767552643526,-500.0,0.00016438,2]
[400437673,1767552643537,-500.0,0.00016438,2]
[400437674,1767552643547,-500.0,0.00016438,2]
[400437675,1767552643556,-500.0,0.00016438,2]
[400437676,1767552643565,-500.0,0.00016438,2]
[400437677,1767552643576,-500.0,0.00016438,2]
[400437678,1767552643587,-500.0,0.00016438,2]
[400437679,1767552643597,-500.0,0.00016438,2]
[400437680,1767552643607,-500.0,0.00016438,2]
[400437681,1767552643617,-500.0,0.00016438,2]
[400437682,1767552643629,-500.0,0.00016438,2]
[400437683,1767552643640,-500.0,0.00016438,2]
[400437684,1767552643650,-500.0,0.00016438,2]
[400437685,1767552643660,-500.0,0.00016438,2]
[400437686,1767552643670,-500.0,0.00016438,2]
[400437687,1767552643680,-500.0,0.00016438,2]
[400437688,1767552643690,-500.0,0.00016438,2]
[400437689,1767552643700,-500.0,0.00016438,2]
[400437690,1767552643710,-500.0,0.00016438,2]
[400437691,1767552643720,-550.79670627,0.00016438,2]
[400437692,1767552643731,-500.0,0.00016438,2]
[400437693,1767552643740,-500.0,0.00016438,2]
[400437694,1767552643751,-500.0,0.00016438,2]
[400437695,1767552643761,-500.0,0.00016438,2]
[400437696,1767552643771,-500.0,0.00016438,2]
[400437697,1767552643780,-550.0,0.00016438,2]
[400437698,1767552643789,-500.0,0.00016438,2]
[400437699,1767552643802,-500.0,0.00016438,2]
[400437700,1767552643811,-6105.75,0.00016438,2]
[400437701,1767552643821,-800.0,0.00016438,2]
[400437702,1767552643830,-164.79,0.0001644,2]
[400437703,1767552643840,-152.0,0.0001646,2]
[400437704,1767552643851,-151.0,0.0001646,2]
[400437705,1767552643860,-152.0,0.0001646,2]
[400437706,1767552643870,-151.0,0.0001646,2]
[400437707,1767552643879,-162.596281,0.0001646,2]
[400437708,1767552644157,-151.0,0.0001646,2]
[400437709,1767552644168,-151.0,0.0001646,2]
[400437710,1767552644178,-151.0,0.0001646,2]
[400437711,1767552644187,-839.0,0.0001646,2]
[400437712,1767552644196,-248.99475294,0.0001646,2]
[400437713,1767552644206,-965.47191766,0.0001646,2]
[400437714,1767552644215,-152.0,0.0001646,2]
[400437715,1767552644224,-151.0,0.0001646,2]
[400437716,1767552644234,-152.0,0.0001646,2]
[400437717,1767552644244,-151.0,0.0001646,2]
[400437718,1767552644253,-152.0,0.0001646,2]
[400437719,1767552644264,-151.0,0.0001646,2]
[400437720,1767552644273,-152.0,0.0001646,2]
[400437721,1767552644283,-151.0,0.0001646,2]
[400437722,1767552644293,-152.0,0.0001646,2]
[400437723,1767552644303,-151.0,0.0001646,2]
[400437724,1767552644316,-152.0,0.0001646,2]
[400437725,1767552644330,-151.0,0.0001646,2]
[400437726,1767552644340,-152.0,0.0001646,2]
[400437727,1767552644350,-151.0,0.0001646,2]
[400437728,1767552644360,-152.0,0.0001646,2]
[400437729,1767552644372,-151.0,0.0001646,2]
[400437730,1767552644381,-152.0,0.0001646,2]
[400437731,1767552644391,-151.0,0.0001646,2]
[400437732,1767552644401,-152.0,0.0001646,2]
[400437733,1767552644413,-151.0,0.0001646,2]
[400437734,1767552644423,-152.0,0.0001646,2]
[400437735,1767552644431,-151.0,0.0001646,2]
[400437736,1767552644442,-152.0,0.0001646,2]
[400437737,1767552644451,-151.0,0.0001646,2]
[400437738,1767552644460,-151.0,0.0001646,2]
[400437739,1767552644470,-152.0,0.0001646,2]
[400437740,1767552644479,-151.0,0.0001646,2]
[400437741,1767552644488,-152.0,0.0001646,2]
[400437742,1767552644498,-151.0,0.0001646,2]
[400437743,1767552644507,-152.0,0.0001646,2]
[400437744,1767552644518,-151.0,0.0001646,2]
[400437745,1767552644527,-152.0,0.0001646,2]
[400437746,1767552644536,-151.0,0.0001646,2]
[400437747,1767552644546,-152.0,0.0001646,2]
[400437748,1767552644555,-151.0,0.0001646,2]
[400437749,1767552644564,-151.0,0.0001646,2]
[400437750,1767552644574,-151.0,0.0001646,2]
[400437751,1767552644584,-152.0,0.0001646,2]
[400437752,1767552644594,-151.0,0.0001646,2]
[400437753,1767552644604,-152.0,0.0001646,2]
[400437754,1767552644613,-152.0,0.0001646,2]
[400437755,1767552644623,-151.0,0.0001646,2]
[400437756,1767552644635,-152.0,0.0001646,2]
[400437757,1767552644644,-151.0,0.0001646,2]
[400437758,1767552644654,-152.0,0.0001646,2]
[400437759,1767552644664,-151.0,0.0001646,2]
[400437760,1767552644675,-152.0,0.0001646,2]
[400437761,1767552644684,-158.0,0.0001646,2]
[400437762,1767552644694,-161.01668066,0.0001646,2]
[400437763,1767552644703,-158.0,0.0001646,2]
[400437764,1767552644713,-158.0,0.0001646,2]
[400437765,1767552644722,-158.0,0.0001646,2]
[400437766,1767552644732,-158.0,0.0001646,2]
[400437767,1767552644741,-156.3554653,0.0001646,2]
[400437768,1767552644751,-151.0,0.0001646,2]
[400437769,1767552644760,-151.0,0.0001646,2]
[400437770,1767552644769,-151.0,0.0001646,2]
[400437771,1767552644779,-151.0,0.0001646,2]
[400437772,1767552644789,-151.0,0.0001646,2]
[400437773,1767552644799,-151.0,0.0001646,2]
[400437774,1767552644808,-151.0,0.0001646,2]
[400437775,1767552644818,-151.0,0.0001646,2]
[400437776,1767552644827,-151.0,0.0001646,2]
[400437777,1767552644836,-151.0,0.0001646,2]
[400437778,1767552644846,-151.0,0.0001646,2]
[400437779,1767552644855,-151.0,0.0001646,2]
[400437780,1767552644864,-151.0,0.0001646,2]
[400437781,1767552644874,-151.0,0.0001646,2]
[400437782,1767552644884,-151.0,0.0001646,2]
[400437783,1767552644900,-151.0,0.0001646,2]
[400437784,1767552644914,-151.0,0.0001646,2]
[400437785,1767552644924,-197.61024982,0.0001646,2]
[400437786,1767552644934,-1084.37,0.00016468,2]
[400437787,1767552644944,-1500.0,0.00016468,2]
[400437788,1767552644954,-1500.0,0.00016468,2]
[400437789,1767552644965,-664.61773369,0.00016468,2]
[400437790,1767552644975,-1500.0,0.00016468,2]
[400437791,1767552644985,-910.90768099,0.00016468,2]
[400437792,1767552644995,-504.61831614,0.00016468,2]
[400437793,1767552645005,-1500.0,0.00016468,2]
[400437794,1767552645017,-227.80986021,0.00016468,2]
[400437795,1767552645026,-1500.0,0.00016468,2]
[400437796,1767552645036,-1500.0,0.00016468,2]
[400437797,1767552645046,-1500.0,0.00016468,2]
[400437798,1767552645056,-1500.0,0.00016468,2]
[400437799,1767552645067,-1500.0,0.00016468,2]
[400437800,1767552645077,-505.54888776,0.00016468,2]
[400437801,1767552645086,-1500.0,0.00016468,2]
[400437802,1767552645096,-1500.0,0.00016468,2]
[400437803,1767552645106,-1500.0,0.00016468,2]
[400437804,1767552645115,-1500.0,0.00016468,2]
[400437805,1767552645125,-1500.0,0.00016468,2]
[400437806,1767552645134,-2668.9,0.00016472,2]
[400437807,1767552645144,-285.96433615,0.00016521,2]
[400437808,1767552645154,-1000.0,0.00016521,2]
[400437809,1767552645163,-1000.0,0.00016521,2]
[400437810,1767552645173,-690.40303512,0.00016521,2]
[400437811,1767552645183,-1000.0,0.00016521,2]
[400437812,1767552645192,-1000.0,0.00016521,2]
[400437813,1767552645203,-1000.0,0.00016521,2]
[400437814,1767552645212,-500.57294627,0.00016521,2]
[400437815,1767552645223,-1000.90262975,0.00016521,2]
[400437816,1767552645233,-1000.0,0.00016521,2]
[400437817,1767552645243,-1000.0,0.00016521,2]
[400437818,1767552645253,-1000.0,0.00016521,2]
[400437819,1767552645263,-1000.0,0.00016521,2]
[400437820,1767552645273,-1000.0,0.00016521,2]
[400437821,1767552645283,-1000.0,0.00016521,2]
[400437822,1767552645293,-514.29610495,0.00016521,2]
[400437823,1767552645302,-577.0015359,0.00016521,2]
[400437824,1767552645312,-1000.0,0.00016521,2]
[400437825,1767552645327,-1000.0,0.00016521,2]
[400437826,1767552645338,-1000.0,0.00016521,2]
[400437827,1767552645348,-1000.0,0.00016521,2]
[400437828,1767552645360,-500.33330588,0.00016521,2]
[400437829,1767552645370,-1000.0,0.00016521,2]
[400437830,1767552645379,-1000.0,0.00016521,2]
[400437831,1767552645389,-1000.0,0.00016521,2]
[400437832,1767552645399,-1000.0,0.00016521,2]
[400437833,1767552645408,-1003.67303953,0.00016521,2]
[400437834,1767552645418,-609.46856999,0.00016521,2]
[400437835,1767552645428,-1000.0,0.00016521,2]
[400437836,1767552645438,-1000.0,0.00016521,2]
[400437837,1767552645447,-397.01027431,0.00016521,2]
[400437838,1767552645457,-554.1071845,0.00016521,2]
[400437839,1767552645466,-1086.98015224,0.00016521,2]
[400437840,1767552645475,-1000.0,0.00016521,2]
[400437841,1767552645485,-1000.0,0.00016521,2]
[400437842,1767552645494,-1000.0,0.00016521,2]
[400437843,1767552645504,-1000.0,0.00016521,2]
[400437844,1767552645514,-1000.0,0.00016521,2]
[400437845,1767552645524,-1000.0,0.00016521,2]
[400437846,1767552645533,-1000.0,0.00016521,2]
[400437847,1767552645542,-1069.91608913,0.00016521,2]
[400437848,1767552645551,-194.13251181,0.00016521,2]
[400437849,1767552645561,-1000.0,0.00016521,2]
[400437850,1767552645570,-167.71055694,0.00016521,2]
[400437851,1767552645580,-1000.0,0.00016521,2]
[400437852,1767552645589,-1000.0,0.00016521,2]
[400437853,1767552645598,-1000.0,0.00016521,2]
[400437854,1767552645608,-182.33791017,0.00016521,2]
[400437856,1767552645617,-1000.0,0.00016521,2]
[400437857,1767552645626,-1000.0,0.00016521,2]
[400437858,1767552645637,-1000.0,0.00016521,2]
[400437859,1767552645647,-1000.0,0.00016521,2]
[400437860,1767552645657,-1000.0,0.00016521,2]
[400437861,1767552645667,-614.044,0.00016593,2]
[400437862,1767552645679,-1600.0,0.00016732,2]
[400437863,1767552645688,-1084.37,0.00016742,2]
[400437864,1767552645697,-1000.0,0.00016842,2]
[400437865,1767552645706,-7021.57,0.0001685,2]
[400437866,1767552645716,-164.85024223,0.00016873,2]
[400437867,1767552645725,-1195.8,0.00016922,2]
[400437868,1767552645736,-499.99,0.00016922,2]
[400437870,1767552645747,-3823.01,0.00016922,2]
[400437872,1767552645756,-9999.99,0.00016922,2]
[400437873,1767552645766,-150.99,0.00016922,2]
[400437874,1767552645776,-2563.71,0.00016922,2]
[400437875,1767552645785,-1499.99,0.00016922,2]
[400437876,1767552645800,-10476.73,0.00016922,2]
[400437877,1767552645810,-16842.19,0.00016922,2]
[400437878,1767552645820,-999.99,0.00016922,2]
[400437879,1767552645831,-3203.34,0.00016922,2]
[400437880,1767552645841,-150.99,0.00016922,2]
[400437881,1767552645850,-9999.99,0.00016922,2]
[400437882,1767552645860,-29360.47,0.00016922,2]
[400437883,1767552645869,-966.0,0.00016944,2]
[400437884,1767552645878,-966.0,0.00016977,2]
[400437885,1767552645887,-500.0,0.00017,7]
[400437887,1767552645897,-500.0,0.00017,7]
[400437889,1767552645906,-500.0,0.00017,7]
[400437890,1767552645918,-466.31,0.00017,7]
[400437891,1767552645928,-1084.37,0.00017016,2]
[400437892,1767552645937,-2000.0,0.00017016,2]
[400437893,1767552645947,-951.20369777,0.00017016,2]
[400437894,1767552645957,-1737.07480166,0.00017016,2]
[400437895,1767552645966,-2000.0,0.00017016,2]
[400437896,1767552645976,-2000.0,0.00017016,2]
[400437897,1767552645986,-660.35,0.00017041,2]
[400437898,1767552645996,-482.22,0.00017041,2]
[400437899,1767552646007,-153.185561,0.00017068,2]
[400437900,1767552646017,-1500.0,0.00017068,2]
[400437901,1767552646027,-1500.0,0.00017068,2]
[400437902,1767552646036,-350.4598533,0.00017068,2]
[400437903,1767552646045,-500.0,0.00017068,2]
[400437904,1767552646055,-278.63852243,0.00017068,2]
[400437905,1767552646065,-1500.0,0.00017068,2]
[400437906,1767552646075,-468.28196053,0.00017068,2]
[400437907,1767552646084,-1500.0,0.00017068,2]
[400437908,1767552646094,-379.37708977,0.00017068,2]
[400437909,1767552646104,-176.92971067,0.00017068,2]
[400437910,1767552646113,-1500.0,0.00017068,2]
[400437911,1767552646122,-164.1404911,0.00017068,2]
[400437912,1767552646132,-1500.53069493,0.00017068,2]
[400437913,1767552646141,-300.62207839,0.00017068,2]
[400437914,1767552646151,-966.0,0.00017151,2]
[400437915,1767552646160,-966.0,0.00017174,2]
[400437916,1767552646170,-178.8,0.00017178,2]
[400437917,1767552646179,-340.3,0.00017178,2]
[400437918,1767552646188,-966.0,0.00017237,2]
[400437919,1767552646198,-433.0,0.00017245,2]
[400437920,1767552646207,-966.0,0.00017269,2]
[400437921,1767552646217,-1404.0,0.00017275,2]
[400437922,1767552646227,-3465.0,0.00017275,2]
[400437923,1767552646236,-613.0,0.00017275,2]
[400437924,1767552646245,-430.0,0.00017275,2]
[400437925,1767552646255,-3201.0,0.00017275,2]
[400437926,1767552646266,-610.78,0.00017275,2]
[400437927,1767552646276,-6547.0,0.00017275,2]
[400437928,1767552646286,-2434.0,0.00017275,2]
[400437929,1767552646297,-1084.37,0.0001729,2]
[400437930,1767552646310,-164.85024223,0.00017387,2]
[400437931,1767552646321,-306.0,0.000174,2]
[400437932,1767552646334,-6568.49326445,0.00017558,2]
[400437933,1767552646343,-966.0,0.0001756,2]
[400437934,1767552646352,-966.0,0.00017564,2]
[400437935,1767552646363,-1084.37,0.00017564,2]
[400437936,1767552646372,-2500.0,0.00017564,2]
[400437937,1767552646382,-2500.0,0.00017564,2]
[400437938,1767552646392,-1640.31028063,0.00017564,2]
[400437939,1767552646402,-966.0,0.00017578,2]
[400437940,1767552646412,-966.0,0.00017613,2]
[400437941,1767552646421,-491.73851592,0.00017616,2]
[400437943,1767552646431,-378.32791478,0.00017616,2]
[400437944,1767552646441,-2002.22212111,0.00017616,2]
[400437945,1767552646451,-2000.0,0.00017616,2]
[400437946,1767552646461,-2000.0,0.00017616,2]
[400437947,1767552646472,-361.74750535,0.0001764,2]
[400437948,1767552646482,-1000.0,0.00017646,2]
[400437949,1767552646493,-1000.0,0.00017651,2]
[400437950,1767552646502,-152.11909412,0.00017675,2]
[400437951,1767552646511,-966.0,0.00017694,2]
[400437952,1767552646521,-1000.0,0.000177,2]
[400437953,1767552646530,-966.0,0.00017719,2]
[400437954,1767552646539,-966.0,0.00017733,2]
[400437955,1767552646549,-300.0,0.00017753,2]
[400437956,1767552646559,-300.0,0.00017766,2]
[400437957,1767552646570,-1000.0,0.000178,2]
[400437958,1767552646580,-1000.0,0.00017801,2]
[400437959,1767552646589,-500.0,0.00017808,2]
[400437960,1767552646603,-500.0,0.00017808,2]
[400437961,1767552646611,-504.23547705,0.00017808,2]
[400437962,1767552646620,-1453.76486,0.0001782,2]
[400437963,1767552646629,-1453.76486,0.0001782,2]
[400437964,1767552646639,-300.0,0.00017821,2]
[400437965,1767552646648,-1453.76487,0.0001783,2]
[400437966,1767552646657,-1084.37,0.00017838,2]